bitfinex/quotes_BTCUSD_20250813
["timestamp","ask_amount","ask_price","bid_price","bid_amount"]
[1755047844200,0.19600151,119390.0,119370.0,0.2]
[1755047844201,0.79772961,119380.0,119370.0,0.2]
[1755047844417,0.98240185,119380.0,119370.0,0.62028325]
[1755047844643,0.96740185,119380.0,119370.0,0.62028325]
[1755047844857,0.98240185,119380.0,119370.0,0.62028325]
[1755047845540,0.98240185,119380.0,119370.0,0.62895207]
[1755047845749,0.98440185,119380.0,119370.0,0.62895207]
[1755047846168,0.98240185,119380.0,119370.0,0.62895207]
[1755047846398,0.98340185,119380.0,119370.0,0.62895207]
[1755047846628,0.98340185,119380.0,119370.0,0.65371004]
[1755047846812,0.98640185,119380.0,119370.0,0.65371004]
[1755047848124,0.98640185,119380.0,119370.0,0.45371004]
[1755047848333,1.01140185,119380.0,119370.0,0.42029212]
[1755047850860,0.21690224,119380.0,119370.0,0.42029212]
[1755047851074,1.01140185,119380.0,119370.0,0.42029212]
[1755047851751,0.21690224,119380.0,119370.0,0.42029212]
[1755047851960,1.01140185,119380.0,119370.0,0.42029212]
[1755047856760,1.01140185,119380.0,119370.0,0.28373212]
[1755047856999,1.01140185,119380.0,119370.0,0.42021212]
[1755047859843,1.01140185,119380.0,119370.0,0.20100887]
[1755047860078,1.80590146,119380.0,119370.0,0.33748887]
[1755047860288,1.01140185,119380.0,119370.0,0.33748887]
[1755047860730,1.01140185,119380.0,119370.0,0.20100887]
[1755047860949,1.01040185,119380.0,119370.0,0.33744887]
[1755047861162,1.80490146,119380.0,119370.0,0.33744887]
[1755047861383,1.01240185,119380.0,119370.0,0.33744887]
[1755047861601,1.01240185,119380.0,119370.0,0.20100887]
[1755047861817,0.20756032,119360.0,119350.0,0.3482377]
[1755047862083,1.79866954,119360.0,119350.0,0.68560656]
[1755047862304,1.80191954,119360.0,119350.0,0.68560656]
[1755047863387,1.80391954,119360.0,119350.0,0.68560656]
[1755047863635,1.80491954,119360.0,119350.0,0.68560656]
[1755047863854,1.83004654,119360.0,119350.0,0.68560656]
[1755047866836,1.03554693,119360.0,119350.0,0.68560656]
[1755047867020,1.83004654,119360.0,119350.0,0.68560656]
[1755047867241,1.03554693,119360.0,119350.0,0.68560656]
[1755047867454,1.83004654,119360.0,119350.0,0.68560656]
[1755047868464,1.82172654,119360.0,119350.0,0.68560656]
[1755047872221,1.02722693,119360.0,119350.0,0.68560656]
[1755047876199,1.82172654,119360.0,119350.0,0.68560656]
[1755047876400,1.02722693,119360.0,119350.0,0.68560656]
[1755047876607,1.82172654,119360.0,119350.0,0.68560656]
[1755047878037,1.02722693,119360.0,119350.0,0.68560656]
[1755047880620,0.98173993,119360.0,119350.0,0.77028981]
[1755047880853,0.99673993,119360.0,119350.0,0.77172981]
[1755047881050,0.98173993,119360.0,119350.0,0.77172981]
[1755047881473,0.18724032,119360.0,119350.0,0.77172981]
[1755047881676,0.003,119360.0,119350.0,0.77172981]
[1755047881918,0.79649961,119360.0,119350.0,0.77172981]
[1755047882322,0.79649961,119360.0,119350.0,0.92172981]
[1755047882323,0.003,119360.0,119350.0,0.92172981]
[1755047882788,0.003,119360.0,119350.0,0.95049981]
[1755047883231,0.001,119360.0,119350.0,0.95049981]
[1755047883433,0.002,119360.0,119350.0,0.95049981]
[1755047884010,0.80949961,119380.0,119370.0,0.2]
[1755047884219,0.80949961,119380.0,119370.0,0.42240325]
[1755047884657,0.80949961,119380.0,119370.0,0.75749325]
[1755047884883,0.015,119380.0,119370.0,0.90749325]
[1755047885299,0.017,119380.0,119370.0,0.90749325]
[1755047885638,0.015,119380.0,119370.0,0.90749325]
[1755047886718,0.015,119380.0,119370.0,0.93626325]
[1755047886935,0.84992047,119410.0,119390.0,0.2]
[1755047887149,0.84154597,119410.0,119400.0,0.22197823]
[1755047887362,1.00903612,119410.0,119400.0,0.55593325]
[1755047887607,1.02403612,119410.0,119400.0,0.55593325]
[1755047888040,0.85654597,119410.0,119400.0,0.55593325]
[1755047888247,0.85654597,119410.0,119400.0,0.55598211]
[1755047889107,1.02403612,119410.0,119400.0,0.55598211]
[1755047889322,1.02503612,119410.0,119400.0,0.55598211]
[1755047889557,1.02799612,119410.0,119400.0,0.55598211]
[1755047889782,1.02799612,119410.0,119400.0,0.56434774]
[1755047890414,1.02899612,119410.0,119400.0,0.56434774]
[1755047892234,1.02899612,119410.0,119400.0,0.58933048]
[1755047892914,0.86150597,119410.0,119400.0,0.58933048]
[1755047893338,0.01996,119410.0,119400.0,0.58933048]
[1755047893550,0.85854597,119410.0,119400.0,0.58933048]
[1755047894411,0.017,119410.0,119400.0,0.58933048]
[1755047894643,0.85854597,119410.0,119400.0,0.58933048]
[1755047897553,0.017,119410.0,119400.0,0.58933048]
[1755047897787,0.85854597,119410.0,119400.0,0.58933048]
[1755047898008,0.002,119410.0,119400.0,0.58933048]
[1755047898219,0.002,119410.0,119400.0,0.59077048]
[1755047898891,0.001,119410.0,119400.0,0.59077048]
[1755047899336,0.84194597,119420.0,119410.0,0.2]
[1755047899574,0.84194597,119420.0,119410.0,0.62160325]
[1755047899830,0.0004,119420.0,119410.0,1.10802325]
[1755047900792,0.0014,119420.0,119410.0,1.10802325]
[1755047901038,0.0014,119420.0,119410.0,1.13312925]
[1755047901258,0.0164,119420.0,119410.0,1.13312925]
[1755047901481,0.0174,119420.0,119410.0,1.10802325]
[1755047901700,0.0024,119420.0,119410.0,1.13313025]
[1755047901929,0.0014,119420.0,119410.0,1.13313025]
[1755047902117,0.0004,119420.0,119410.0,1.13513025]
[1755047902565,1.0144721,119420.0,119410.0,0.62154325]
[1755047902852,0.20787613,119420.0,119410.0,0.62154325]
[1755047903077,1.0544721,119420.0,119410.0,0.75754325]
[1755047903523,0.0004,119420.0,119410.0,0.75850325]
[1755047903751,0.85694597,119420.0,119410.0,0.95850325]
[1755047903995,0.0004,119420.0,119410.0,0.95994325]
[1755047904219,0.0004,119420.0,119410.0,1.10650325]
[1755047904671,0.0004,119420.0,119410.0,1.10794325]
[1755047905181,0.0004,119420.0,119410.0,5.40895825]
[1755047905410,0.0004,119420.0,119410.0,3.01869927]
[1755047905878,0.0004,119420.0,119410.0,2.43971027]
[1755047906101,0.0004,119420.0,119410.0,2.46143005]
[1755047906318,0.0004,119420.0,119410.0,2.44271027]
[1755047906805,0.0004,119420.0,119410.0,2.46043005]
[1755047907022,0.0004,119420.0,119410.0,2.46243005]
[1755047907242,0.0004,119420.0,119410.0,1.11874027]
[1755047907471,0.0004,119420.0,119410.0,1.13026427]
[1755047907690,0.0004,119420.0,119410.0,0.90646325]
[1755047907904,0.0004,119420.0,119410.0,0.90942325]
[1755047908844,0.0004,119420.0,119410.0,0.77550325]
[1755047909060,0.0004,119420.0,119410.0,0.91142325]
[1755047911308,0.0004,119420.0,119410.0,0.91138325]
[1755047911947,0.0004,119420.0,119410.0,0.91282325]
[1755047913580,0.0004,119420.0,119410.0,0.91138325]
[1755047914009,0.0004,119420.0,119410.0,0.91134325]
[1755047914461,0.0004,119420.0,119410.0,0.91613025]
[1755047921678,0.0004,119420.0,119410.0,0.93357927]
[1755047921894,0.0004,119420.0,119410.0,2.59976627]
[1755047922118,0.0004,119420.0,119410.0,2.80976627]
[1755047922338,0.0004,119420.0,119410.0,2.83767627]
[1755047922819,0.0004,119420.0,119410.0,2.65427027]
[1755047923032,0.0004,119420.0,119410.0,2.67299005]
[1755047923245,0.0004,119420.0,119410.0,2.65427027]
[1755047923475,0.0004,119420.0,119410.0,2.67299005]
[1755047925372,0.0004,119430.0,119420.0,0.01]
[1755047925578,0.0004,119430.0,119420.0,5.58518696]
[1755047925778,0.0004,119430.0,119420.0,5.58557303]
[1755047926450,0.0004,119430.0,119420.0,5.60302205]
[1755047926662,0.0004,119430.0,119420.0,5.60502205]
[1755047927391,0.00339,119480.0,119470.0,0.35]
[1755047927618,0.00549,119480.0,119470.0,1.10393325]
[1755047928743,0.00597641,119480.0,119470.0,1.10393325]
[1755047929197,0.00797641,119480.0,119470.0,1.10393325]
[1755047932735,0.00797641,119480.0,119470.0,1.12865794]
[1755047933174,0.00797641,119480.0,119470.0,2.64878394]
[1755047933387,0.00288641,119480.0,119470.0,2.65080394]
[1755047933571,0.00288641,119480.0,119470.0,2.60277094]
[1755047934314,0.00288641,119480.0,119470.0,2.58660494]
[1755047934538,0.00288641,119480.0,119470.0,2.58186296]
[1755047934756,0.00288641,119480.0,119470.0,1.67038596]
[1755047935194,0.00288641,119480.0,119470.0,1.67182596]
[1755047935645,0.00288641,119480.0,119470.0,1.77474596]
[1755047936045,0.00797641,119480.0,119470.0,1.66667696]
[1755047936527,0.00597641,119480.0,119470.0,1.68167696]
[1755047936761,0.00188641,119480.0,119470.0,1.68167696]
[1755047937205,0.00088641,119480.0,119470.0,1.68167696]
[1755047937427,0.00088641,119480.0,119470.0,1.68411696]
[1755047937613,0.00088641,119480.0,119470.0,1.68267696]
[1755047938040,0.00387641,119480.0,119470.0,1.68267696]
[1755047938245,0.00597641,119480.0,119470.0,1.68065696]
[1755047939776,0.00088641,119480.0,119470.0,1.68266696]
[1755047940234,0.00404641,119480.0,119470.0,1.68266696]
[1755047940481,0.00404641,119480.0,119470.0,1.66521794]
[1755047940714,0.00088641,119480.0,119470.0,1.66521794]
[1755047941846,0.00088641,119480.0,119470.0,1.65021794]
[1755047942082,0.00088641,119480.0,119470.0,1.66766696]
[1755047943503,0.00088641,119480.0,119470.0,1.65021794]
[1755047943960,0.00088641,119480.0,119470.0,1.65165794]
[1755047944638,0.00088641,119480.0,119470.0,1.66910696]
[1755047944923,0.00088641,119480.0,119470.0,1.66766696]
[1755047945868,0.00600641,119480.0,119470.0,1.09833794]
[1755047946094,0.00600641,119480.0,119470.0,1.21757294]
[1755047947707,0.00404641,119480.0,119470.0,0.88346294]
[1755047947937,0.00088641,119480.0,119470.0,1.21950294]
[1755047948577,0.00088641,119480.0,119470.0,1.41950294]
[1755047949703,0.00600641,119480.0,119470.0,1.41950294]
[1755047950076,0.00600641,119480.0,119470.0,1.41749294]
[1755047950512,0.00600641,119480.0,119470.0,1.28209294]
[1755047950775,0.00600641,119480.0,119470.0,1.23361794]
[1755047951027,0.00600641,119480.0,119470.0,1.37862094]
[1755047955303,0.00088641,119480.0,119470.0,1.38063094]
[1755047958211,0.00088641,119480.0,119470.0,1.38207094]
[1755047958450,0.00088641,119480.0,119470.0,1.40951996]
[1755047959348,0.00088641,119480.0,119470.0,1.40807996]
[1755047963478,0.00088641,119480.0,119470.0,1.43316996]
[1755047969850,0.00088641,119480.0,119470.0,1.33024996]
[1755047970295,0.00088641,119480.0,119470.0,1.12960996]
[1755047970492,0.00088641,119480.0,119470.0,1.15191885]
[1755047971900,0.00088641,119480.0,119470.0,1.12960996]
[1755047972333,0.00088641,119480.0,119470.0,1.12816996]
[1755047972765,0.00088641,119480.0,119470.0,0.79280996]
[1755047972985,0.00606641,119480.0,119470.0,0.92792996]
[1755047974329,0.00606641,119480.0,119470.0,1.01593996]
[1755047974591,0.00606641,119480.0,119470.0,0.92792996]
[1755047975285,0.00088641,119480.0,119470.0,0.92792996]
[1755047975737,0.00088641,119480.0,119470.0,1.23284996]
[1755047978208,0.00391641,119480.0,119470.0,1.23284996]
[1755047979165,0.00606641,119480.0,119470.0,1.23276996]
[1755047979814,0.00391641,119480.0,119470.0,1.23276996]
[1755047980109,0.00088641,119480.0,119470.0,1.23276996]
[1755047980376,0.00088641,119480.0,119470.0,1.12844996]
[1755047981357,0.84613458,119480.0,119470.0,0.76538694]
[1755047981563,0.00606641,119480.0,119470.0,1.20809694]
[1755047982783,0.00606641,119480.0,119470.0,1.19617594]
[1755047983456,0.00606641,119480.0,119470.0,1.08203794]
[1755047984487,0.00606641,119480.0,119470.0,1.08429094]
[1755047984927,0.00606641,119480.0,119470.0,0.95394794]
[1755047985157,0.00606641,119480.0,119470.0,0.66894794]
[1755047985381,0.84613458,119480.0,119470.0,0.79385794]
[1755047985589,0.00606641,119480.0,119470.0,0.92885794]
[1755047986219,0.84613458,119480.0,119470.0,0.92885794]
[1755047986707,0.84613458,119480.0,119470.0,0.92881794]
[1755047987142,0.00606641,119480.0,119470.0,0.92881794]
[1755047987355,0.84613458,119480.0,119470.0,0.92881794]
[1755047988015,1.01352661,119480.0,119470.0,0.64385794]
[1755047988239,1.07844661,119480.0,119470.0,0.75409325]
[1755047988465,1.07844661,119480.0,119470.0,0.61913325]
[1755047988682,1.07844661,119480.0,119470.0,0.67137]
[1755047989832,1.10354961,119480.0,119470.0,0.67137]
[1755047990258,1.10354961,119480.0,119470.0,0.53641]
[1755047990480,1.10354961,119480.0,119470.0,0.67137]
[1755047991775,1.10354961,119480.0,119470.0,0.67133]
[1755047991992,1.10354961,119480.0,119470.0,0.53541]
[1755047992211,1.10354961,119480.0,119470.0,0.67037]
[1755047992435,1.10454961,119480.0,119470.0,0.67037]
[1755047992666,1.10354961,119480.0,119470.0,0.67037]
[1755047993128,1.10654961,119480.0,119470.0,0.67033]
[1755047995825,0.86413458,119480.0,119470.0,0.67033]
[1755047996055,0.88913458,119480.0,119470.0,0.67033]
[1755047997128,0.86413458,119480.0,119470.0,0.75305325]
[1755047997340,0.04906641,119480.0,119470.0,0.75305325]
[1755047997545,0.86413458,119480.0,119470.0,0.75305325]
[1755047997932,0.88913458,119480.0,119470.0,0.75305325]
[1755047998190,0.86413458,119480.0,119470.0,0.75305325]
[1755047998390,0.88913458,119480.0,119470.0,0.75305325]
[1755047998758,0.88613458,119480.0,119470.0,0.75301325]
[1755047999173,0.88713458,119480.0,119470.0,0.75301325]
[1755048000143,0.02206641,119480.0,119470.0,0.75301325]
[1755048001001,0.00706641,119480.0,119470.0,0.75301325]
[1755048002208,0.00706641,119480.0,119470.0,0.75516325]
[1755048003261,0.00188641,119480.0,119470.0,0.75516325]
[1755048003521,0.00188641,119480.0,119470.0,1.58835725]
[1755048003703,0.00188641,119480.0,119470.0,1.65664496]
[1755048004321,0.00188641,119480.0,119470.0,1.62901396]
[1755048005988,0.00188641,119480.0,119470.0,1.65330396]
[1755048006847,0.00088641,119480.0,119470.0,1.65330396]
[1755048007329,0.00088641,119480.0,119470.0,1.65430396]
[1755048007589,0.00088641,119480.0,119470.0,1.67839396]
[1755048008064,0.00088641,119480.0,119470.0,1.68139396]
[1755048009971,0.00088641,119480.0,119470.0,1.78571396]
[1755048010391,0.00088641,119480.0,119470.0,1.20983025]
[1755048011304,0.00088641,119480.0,119470.0,1.21127025]
[1755048013026,0.00088641,119480.0,119470.0,1.20983025]
[1755048014684,0.00088641,119480.0,119470.0,1.21127025]
[1755048015366,0.00088641,119480.0,119470.0,1.23357914]
[1755048015590,0.00088641,119480.0,119470.0,1.41894819]
[1755048015814,0.00088641,119480.0,119470.0,1.45125708]
[1755048016951,0.00088641,119480.0,119470.0,1.40612531]
[1755048019917,0.00088641,119480.0,119470.0,1.62102531]
[1755048021962,0.00088641,119480.0,119470.0,1.6433342]
[1755048022829,0.00314,119510.0,119500.0,0.15]
[1755048023043,0.025,119550.0,119530.0,0.15]
[1755048023275,0.025,119550.0,119540.0,0.41800325]
[1755048023502,0.8678281,119550.0,119540.0,0.41800325]
[1755048023735,0.88535414,119550.0,119540.0,0.41800325]
[1755048024161,0.88535414,119550.0,119540.0,0.44332288]
[1755048024591,0.03028597,119550.0,119540.0,0.77794288]
[1755048024807,0.00728597,119550.0,119540.0,0.77794288]
[1755048025007,0.03228597,119550.0,119540.0,0.97794288]
[1755048025270,0.00728597,119550.0,119540.0,0.97794288]
[1755048025489,0.00728597,119550.0,119540.0,0.98631352]
[1755048025930,0.02228597,119550.0,119540.0,0.98631352]
[1755048026809,0.02228597,119550.0,119540.0,0.85167352]
[1755048027034,0.86235414,119550.0,119540.0,0.98627352]
[1755048027853,0.00728597,119550.0,119540.0,2.49267652]
[1755048028058,0.00728597,119550.0,119540.0,1.71172652]
[1755048028466,0.00728597,119550.0,119540.0,1.18051952]
[1755048028669,0.00728597,119550.0,119540.0,1.16998352]
[1755048028877,0.00528597,119550.0,119540.0,1.16998352]
[1755048029087,0.00528597,119550.0,119540.0,1.14647052]
[1755048029913,0.84535414,119550.0,119540.0,0.65167352]
[1755048030129,0.00528597,119550.0,119540.0,0.78623352]
[1755048030331,0.00728597,119550.0,119540.0,0.78623352]
[1755048033906,0.00528597,119550.0,119540.0,0.78837352]
[1755048034134,0.00214597,119550.0,119540.0,0.78837352]
[1755048034346,0.00214597,119550.0,119540.0,2.25107252]
[1755048034571,0.00214597,119550.0,119540.0,2.18643952]
[1755048034778,0.00214597,119550.0,119540.0,2.14504152]
[1755048035529,0.00214597,119550.0,119540.0,2.06340852]
[1755048036852,0.00214597,119550.0,119540.0,1.62902052]
[1755048037054,0.00721597,119550.0,119540.0,1.62902052]
[1755048037302,0.00721597,119550.0,119540.0,1.54036052]
[1755048037936,0.00521597,119550.0,119540.0,1.54036052]
[1755048038580,0.00521597,119550.0,119540.0,1.34361452]
[1755048038791,0.00521597,119550.0,119540.0,1.22145452]
[1755048039850,0.00521597,119550.0,119540.0,1.11248052]
[1755048041274,0.00521597,119550.0,119540.0,1.21676052]
[1755048041982,0.00521597,119550.0,119540.0,1.08746052]
[1755048042223,0.00521597,119550.0,119540.0,1.05049252]
[1755048042888,0.00315597,119550.0,119540.0,1.05263252]
[1755048043103,0.00014597,119550.0,119540.0,1.05263252]
[1755048045496,0.00315597,119550.0,119540.0,1.05263252]
[1755048045944,0.00521597,119550.0,119540.0,1.05263252]
[1755048047514,0.00521597,119550.0,119540.0,1.05049252]
[1755048049300,0.00521597,119550.0,119540.0,1.05263252]
[1755048049749,0.00315597,119550.0,119540.0,1.05263252]
[1755048050574,0.00014597,119550.0,119540.0,1.05263252]
[1755048050785,0.00014597,119550.0,119540.0,1.11815252]
[1755048051012,0.00521597,119550.0,119540.0,1.25033252]
[1755048052395,0.00521597,119550.0,119540.0,1.09027352]
[1755048052834,0.00521597,119550.0,119540.0,1.20992052]
[1755048053052,0.00521597,119550.0,119540.0,1.09027352]
[1755048053271,0.00521597,119550.0,119540.0,0.75595352]
[1755048053513,0.8878981,119550.0,119540.0,0.89027352]
[1755048053731,0.88528414,119550.0,119540.0,0.89027352]
[1755048054735,0.88728414,119550.0,119540.0,0.89027352]
[1755048054936,0.88728414,119550.0,119540.0,0.64791064]
[1755048055171,0.88728414,119550.0,119540.0,0.78223064]
[1755048055384,0.88728414,119550.0,119540.0,0.86495389]
[1755048055639,0.04721597,119550.0,119540.0,1.06495389]
[1755048056519,0.02221597,119550.0,119540.0,1.06495389]
[1755048056721,0.04721597,119550.0,119540.0,1.06495389]
[1755048057856,0.04721597,119550.0,119540.0,0.93063389]
[1755048058067,0.8898981,119550.0,119540.0,1.06491389]
[1755048058278,0.88728414,119550.0,119540.0,1.06491389]
[1755048060720,0.04721597,119550.0,119540.0,1.06491389]
[1755048060915,0.04982993,119550.0,119540.0,1.06491389]
[1755048061336,0.02221597,119550.0,119540.0,1.06689389]
[1755048061543,0.04214597,119550.0,119540.0,1.06689389]
[1755048061756,0.88746414,119550.0,119540.0,0.93063389]
[1755048061972,0.88746414,119550.0,119540.0,0.73063389]
[1755048062193,0.88746414,119550.0,119540.0,0.86487389]
[1755048062415,1.05475815,119550.0,119540.0,0.52999389]
[1755048062630,1.91227534,119550.0,119540.0,0.7737]
[1755048062818,1.93806534,119550.0,119540.0,0.7737]
[1755048063126,0.257929,119550.0,119540.0,0.7737]
[1755048063343,1.93806534,119550.0,119540.0,0.7737]
[1755048063541,1.93606534,119550.0,119540.0,0.7737]
[1755048063764,1.09599717,119550.0,119540.0,0.7737]
[1755048063979,1.09999717,119550.0,119540.0,0.7737]
[1755048064195,1.09599717,119550.0,119540.0,0.7737]
[1755048064406,1.09599717,119550.0,119540.0,0.63946]
[1755048064621,1.10099717,119550.0,119540.0,0.77366]
[1755048064802,1.17926791,119550.0,119540.0,0.77366]
[1755048065513,1.17916234,119550.0,119540.0,0.77366]
[1755048066917,0.0502904,119550.0,119540.0,1.05638325]
[1755048067337,0.22019837,119550.0,119540.0,1.05638325]
[1755048067565,1.13592332,119550.0,119540.0,0.63946]
[1755048068003,1.13592332,119550.0,119540.0,0.77366]
[1755048068426,1.13592332,119550.0,119540.0,0.76634]
[1755048068867,1.13092332,119550.0,119540.0,0.76634]
[1755048069083,1.13092332,119550.0,119540.0,0.63214]
[1755048069084,1.14837234,119550.0,119540.0,0.63214]
[1755048069309,1.14837234,119550.0,119540.0,0.7663]
[1755048069739,1.14837234,119550.0,119540.0,0.66202]
[1755048069970,1.15137234,119550.0,119540.0,0.66202]
[1755048070179,1.14837234,119550.0,119540.0,0.66202]
[1755048070683,1.15237234,119550.0,119540.0,0.66202]
[1755048071328,1.15237234,119550.0,119540.0,0.52786]
[1755048071761,1.15237234,119550.0,119540.0,0.66202]
[1755048073699,1.15237234,119550.0,119540.0,0.52786]
[1755048073917,1.15237234,119550.0,119540.0,0.66202]
[1755048074558,1.15237234,119550.0,119540.0,0.52786]
[1755048074782,1.26088559,119550.0,119540.0,0.52786]
[1755048074997,1.26088559,119550.0,119540.0,0.66198]
[1755048075436,1.28597859,119550.0,119540.0,0.66198]
[1755048075680,1.28597859,119550.0,119540.0,0.52786]
[1755048075892,1.28597859,119550.0,119540.0,0.66198]
[1755048077767,1.39346302,119550.0,119540.0,0.52786]
[1755048077972,1.39346302,119550.0,119510.0,0.06684771]
[1755048077973,0.22478503,119520.0,119510.0,0.06684771]
[1755048078263,1.14525394,119520.0,119510.0,0.40156771]
[1755048078477,1.14837394,119520.0,119510.0,0.40156771]
[1755048079747,1.15237394,119520.0,119510.0,0.40156771]
[1755048082782,1.15237394,119520.0,119510.0,0.33468]
[1755048082991,1.20598509,119520.0,119510.0,0.2006]
[1755048083206,1.15237394,119520.0,119510.0,0.33468]
[1755048083833,1.23509719,119520.0,119510.0,0.33468]
[1755048084276,0.19239203,119480.0,119470.0,0.06684771]
[1755048084535,1.12786094,119480.0,119470.0,0.40156771]
[1755048084730,1.12786094,119480.0,119470.0,0.40980764]
[1755048084933,1.13098094,119480.0,119470.0,0.41178764]
[1755048085345,0.20952203,119480.0,119470.0,0.41178764]
[1755048085555,0.20739203,119480.0,119470.0,0.4118932]
[1755048085972,0.20839203,119480.0,119470.0,0.4118932]
[1755048087983,0.20839203,119480.0,119470.0,0.40365327]
[1755048088189,0.21364203,119480.0,119470.0,0.26759327]
[1755048088396,0.21364203,119480.0,119470.0,0.20074556]
[1755048088608,0.21364203,119480.0,119470.0,0.33680556]
[1755048089252,0.21151203,119480.0,119470.0,0.33680556]
[1755048089396,0.20839203,119480.0,119470.0,0.33680556]
[1755048089805,0.20839203,119480.0,119470.0,0.3453224]
[1755048090015,0.20839203,119480.0,119470.0,0.33680556]
[1755048090222,0.21353203,119480.0,119470.0,0.33680556]
[1755048090430,0.20839203,119480.0,119470.0,0.33680556]
[1755048091453,0.21353203,119480.0,119470.0,0.33680556]
[1755048091863,1.13187094,119480.0,119470.0,0.33680556]
[1755048092518,0.21053203,119480.0,119470.0,0.33680556]
[1755048092673,1.04877625,119480.0,119470.0,0.33680556]
[1755048094886,0.016,119480.0,119470.0,0.33824556]
[1755048095108,0.0436155,119480.0,119470.0,0.33824556]
[1755048095778,0.21100753,119480.0,119470.0,0.42096881]
[1755048096005,1.04877625,119480.0,119470.0,0.41952881]
[1755048096894,1.05391625,119480.0,119470.0,0.33478556]
[1755048097593,0.21353203,119480.0,119470.0,0.33478556]
[1755048097806,1.05391625,119480.0,119470.0,0.33478556]
[1755048098887,1.13279795,119480.0,119470.0,0.33478556]
[1755048099323,1.13279795,119480.0,119470.0,0.33478556]
[1755048099988,0.21353203,119480.0,119470.0,0.33478556]
[1755048100434,0.21353203,119480.0,119470.0,0.33687556]
[1755048104556,0.20839203,119480.0,119470.0,0.20283556]
[1755048104793,0.21353203,119480.0,119470.0,0.33687556]
[1755048105633,0.21139203,119480.0,119470.0,0.33687556]
[1755048105844,0.20839203,119480.0,119470.0,0.33687556]
[1755048106737,0.18339203,119480.0,119470.0,0.33687556]
[1755048106960,0.20839203,119480.0,119470.0,0.33687556]
[1755048108035,0.21139203,119480.0,119470.0,0.33687556]
[1755048108251,0.21353203,119480.0,119470.0,0.33687556]
[1755048109329,0.016,119480.0,119470.0,0.41959881]
[1755048109750,0.041,119480.0,119470.0,0.41959881]
[1755048109987,0.001,119480.0,119470.0,0.42103881]
[1755048110405,0.001,119480.0,119470.0,0.48788652]
[1755048111031,0.001,119480.0,119470.0,0.51267652]
[1755048111868,0.04,119500.0,119490.0,0.2]
[1755048112079,0.015,119500.0,119490.0,0.41885325]
[1755048112520,0.04,119500.0,119490.0,0.41885325]
[1755048112724,0.04261506,119500.0,119490.0,0.41885325]
[1755048113173,0.02761506,119500.0,119490.0,0.41885325]
[1755048113422,0.02761506,119500.0,119490.0,0.42029325]
[1755048113651,0.04,119510.0,119490.0,0.42029325]
[1755048113872,0.04,119510.0,119500.0,0.08377385]
[1755048114093,0.025,119510.0,119500.0,0.08730385]
[1755048114950,0.026,119510.0,119500.0,0.08730385]
[1755048115626,0.025,119510.0,119500.0,0.08730385]
[1755048116050,0.04261462,119520.0,119510.0,0.2]
[1755048116378,0.015,119520.0,119510.0,0.41885325]
[1755048116597,0.04261462,119520.0,119510.0,0.41885325]
[1755048116822,0.20995063,119520.0,119510.0,0.41885325]
[1755048117037,0.20733601,119520.0,119510.0,0.41885325]
[1755048117264,0.21038484,119520.0,119510.0,0.41885325]
[1755048117703,0.21252484,119520.0,119510.0,0.41885325]
[1755048117923,0.21252484,119520.0,119510.0,0.41985325]
[1755048118844,1.05222236,119520.0,119510.0,0.41985325]
[1755048119249,0.21252484,119520.0,119510.0,0.41985325]
[1755048120622,0.20738484,119520.0,119510.0,0.41985325]
[1755048122005,1.05241236,119520.0,119510.0,0.41985325]
[1755048122899,0.21271484,119520.0,119510.0,0.41985325]
[1755048123108,1.05241236,119520.0,119510.0,0.41985325]
[1755048124653,0.21271484,119520.0,119510.0,0.41985325]
[1755048125510,1.05241236,119520.0,119510.0,0.41985325]
[1755048125718,1.05241236,119520.0,119510.0,0.43985325]
[1755048125946,0.21271484,119520.0,119510.0,0.43985325]
[1755048126378,1.05241236,119520.0,119510.0,0.43985325]
[1755048126611,0.21271484,119520.0,119510.0,0.43985325]
[1755048126831,1.05241236,119520.0,119510.0,0.43985325]
[1755048128373,1.05241236,119520.0,119510.0,0.30581325]
[1755048128615,1.05241236,119520.0,119510.0,0.021]
[1755048128842,1.06986138,119520.0,119510.0,0.021]
[1755048129071,1.06986138,119520.0,119510.0,0.15496]
[1755048129935,1.07086138,119520.0,119510.0,0.15496]
[1755048130155,1.07086138,119520.0,119510.0,0.3546]
[1755048130826,1.07186138,119520.0,119510.0,0.3546]
[1755048131479,0.20737802,119490.0,119480.0,0.10432]
[1755048131766,0.20737802,119490.0,119480.0,0.30496]
[1755048131767,1.04919554,119490.0,119480.0,0.30496]
[1755048131982,0.22694704,119490.0,119480.0,0.43892]
[1755048132168,1.06985456,119490.0,119480.0,0.43892]
[1755048133058,1.07085456,119490.0,119480.0,0.43892]
[1755048133503,1.06985456,119490.0,119480.0,0.43892]
[1755048133733,1.07185456,119490.0,119480.0,0.43892]
[1755048134332,1.07385456,119490.0,119480.0,0.43892]
[1755048140404,1.07241456,119490.0,119480.0,0.43892]
[1755048142331,1.07241456,119490.0,119480.0,0.30496]
[1755048142543,0.20010005,119460.0,119450.0,0.07530643]
[1755048142761,0.20744809,119440.0,119430.0,0.06684771]
[1755048142965,1.04714561,119440.0,119430.0,0.35226096]
[1755048143192,1.04714561,119440.0,119430.0,0.48626096]
[1755048143853,1.04614561,119440.0,119430.0,0.48674737]
[1755048144306,1.04614561,119440.0,119430.0,0.48874737]
[1755048144521,0.20644809,119440.0,119430.0,0.48874737]
[1755048144736,1.04614561,119440.0,119430.0,0.48874737]
[1755048144936,1.04614561,119440.0,119430.0,0.49710304]
[1755048146411,1.04614561,119440.0,119430.0,0.49910304]
[1755048146830,1.04614561,119440.0,119430.0,0.36510304]
[1755048147075,1.04614561,119440.0,119430.0,0.49910304]
[1755048147296,1.04614561,119440.0,119430.0,0.36510304]
[1755048147509,1.04614561,119440.0,119430.0,0.49910304]
[1755048148280,1.04614561,119440.0,119430.0,0.29825533]
[1755048148489,1.04614561,119440.0,119430.0,0.43225533]
[1755048149306,0.20644809,119440.0,119430.0,0.43225533]
[1755048149456,1.04614561,119440.0,119430.0,0.43225533]
[1755048149692,1.04614561,119440.0,119430.0,0.29825533]
[1755048149951,1.04614561,119440.0,119430.0,0.43225533]
[1755048150948,0.20644809,119440.0,119430.0,0.43225533]
[1755048151153,0.20644809,119440.0,119430.0,0.43369533]
[1755048151364,0.18144809,119440.0,119430.0,0.43369533]
[1755048151578,0.20744586,119450.0,119430.0,0.45600422]
[1755048151790,0.20744586,119450.0,119440.0,0.28416325]
[1755048151994,0.20744586,119450.0,119440.0,0.28623325]
[1755048152807,0.20744586,119450.0,119440.0,0.28479325]
[1755048153055,1.04714338,119450.0,119440.0,0.41879325]
[1755048153268,1.05227338,119450.0,119440.0,0.21672325]
[1755048153480,1.05227338,119450.0,119440.0,0.134]
[1755048153687,1.05227338,119450.0,119440.0,0.136]
[1755048154076,1.05227338,119450.0,119440.0,0.002]
[1755048154291,1.05227338,119450.0,119440.0,0.136]
[1755048155207,1.05227338,119450.0,119440.0,0.13807]